fUST/lending_fUST_20240416
["ID","MTS","AMOUNT","RATE_DAILY","PERIOD"]
[322773444,1713276638753,-228.89911727,0.00021401,2]
[322773445,1713276638762,-420.0,0.00021552,2]
[322773446,1713276638771,-228.89911727,0.00021995,2]
[322773447,1713276638780,-228.89911727,0.00022588,2]
[322773448,1713276638789,-228.89911727,0.00023182,2]
[322773449,1713276638799,-391.47925652,0.00023232,2]
[322773450,1713276638809,-587.0,0.0002325,2]
[322773451,1713276638818,-587.0,0.00023708,2]
[322773452,1713276638827,-228.89911727,0.00023776,2]
[322773453,1713276638836,-228.89911727,0.00024369,2]
[322773454,1713276638846,-153.0,0.00024734,2]
[322773455,1713276638855,-382.53049949,0.000249,2]
[322773456,1713276638864,-228.89911727,0.00024963,2]
[322773457,1713276638880,-228.89911727,0.00025557,2]
[322773458,1713276638890,-823.0,0.00026078,2]
[322773459,1713276638900,-228.89911727,0.00026151,2]
[322773460,1713276638912,-391.47925652,0.00026564,2]
[322773461,1713276638923,-228.89911727,0.00026744,2]
[322773462,1713276638934,-3295.50625609,0.00027,2]
[322773463,1713276638945,-332.01154009,0.00027,2]
[322773464,1713276638956,-309.59752631,0.00027,2]
[322773465,1713276638966,-1351.53135955,0.00027199,2]
[322773466,1713276638976,-228.89911727,0.00027338,2]
[322773467,1713276638987,-165.732127,0.00027397,2]
[322773468,1713276638997,-166.666666,0.00027397,2]
[322773469,1713276639007,-159.375976,0.00027397,2]
[322773470,1713276639018,-1000.0,0.00027397,2]
[322773471,1713276639027,-228.89911727,0.00027932,2]
[322773472,1713276639036,-166.666666,0.00028038,2]
[322773473,1713276639045,-414.330448,0.00028096,2]
[322773474,1713276639055,-228.89911727,0.00028525,2]
[322773475,1713276639064,-166.666666,0.00028679,2]
[322773476,1713276639074,-1152.0,0.00028686,2]
[322773477,1713276639083,-5000.0,0.00029,2]
[322773478,1713276639092,-228.89911727,0.00029119,2]
[322773479,1713276639102,-166.666666,0.00029321,2]
[322773480,1713276639111,-150.0,0.00029503,2]
[322773481,1713276639126,-417.0,0.00029503,2]
[322773482,1713276639136,-228.89911727,0.00029713,2]
[322773483,1713276639145,-586.0,0.000298,2]
[322773484,1713276639154,-391.47925652,0.00029895,2]
[322773485,1713276639164,-166.666666,0.00029962,2]
[322773486,1713276639173,-155.26931618,0.0003,4]
[322773487,1713276639182,-228.89911727,0.00030306,2]
[322773488,1713276639190,-166.666666,0.00030603,2]
[322773489,1713276639200,-228.89911727,0.000309,2]
[322773490,1713276639209,-500.0,0.00030999,2]
[322773491,1713276639218,-176.88781533,0.00030999,2]
[322773492,1713276639227,-465.32238378,0.00030999,2]
[322773493,1713276639237,-500.0,0.00030999,2]
[322773494,1713276639246,-273.47763409,0.00030999,2]
[322773495,1713276639255,-186.35762658,0.00030999,10]
[322773496,1713276639264,-5000.0,0.00031,4]
[322773497,1713276639273,-10629.16568609,0.00031,5]
[322773498,1713276639282,-71216.55703049,0.00031,2]
[322773499,1713276639290,-1961.42799673,0.00031,2]
[322773500,1713276639299,-150.0,0.000315,8]
[322773501,1713276639308,-1613.0,0.00031555,2]
[322773502,1713276639317,-164.34817488,0.00031679,2]
[322773503,1713276639326,-19377.78396154,0.0003178,2]
[322773504,1713276639336,-154.86062544,0.0003189,10]
[322773505,1713276639346,-63565.45897815,0.000319,2]
[322773506,1713276639354,-151.0,0.000319,2]
[322773507,1713276639363,-151.0,0.000319,2]
[322773508,1713276639378,-178.904955,0.000319,2]
[322773509,1713276639387,-178.904955,0.000319,2]
[322773510,1713276639396,-156.615721,0.000319,2]
[322773511,1713276639406,-156.615721,0.000319,2]
[322773512,1713276639415,-151.0,0.000319,2]
[322773513,1713276639425,-151.0,0.000319,2]
[322773514,1713276639436,-151.0,0.000319,2]
[322773515,1713276639446,-151.0,0.000319,2]
[322773516,1713276639455,-151.0,0.000319,2]
[322773517,1713276639464,-234.823362,0.000319,2]
[322773518,1713276639475,-234.823362,0.000319,2]
[322773519,1713276639484,-151.0,0.000319,2]
[322773520,1713276639493,-151.0,0.000319,2]
[322773521,1713276639502,-151.0,0.000319,2]
[322773522,1713276639511,-151.0,0.000319,2]
[322773523,1713276639521,-286.87585,0.000319,2]
[322773524,1713276639531,-286.87585,0.000319,2]
[322773525,1713276639540,-963.745932,0.000319,2]
[322773526,1713276639549,-963.745932,0.000319,2]
[322773527,1713276639558,-151.0,0.000319,2]
[322773528,1713276639567,-151.0,0.000319,2]
[322773529,1713276639576,-181.957623,0.000319,2]
[322773530,1713276639585,-181.957623,0.000319,2]
[322773531,1713276639594,-151.0,0.000319,2]
[322773532,1713276639603,-151.0,0.000319,2]
[322773534,1713276639612,-151.0,0.000319,2]
[322773535,1713276639624,-865.459624,0.000319,2]
[322773536,1713276639633,-865.459624,0.000319,2]
[322773537,1713276639642,-151.0,0.000319,2]
[322773538,1713276639651,-564.728726,0.000319,2]
[322773539,1713276639660,-564.728726,0.000319,2]
[322773540,1713276639669,-173.64565,0.000319,2]
[322773541,1713276639678,-173.64565,0.000319,2]
[322773542,1713276639687,-151.0,0.000319,2]
[322773543,1713276639697,-151.0,0.000319,2]
[322773544,1713276639705,-151.0,0.000319,2]
[322773545,1713276639714,-151.0,0.000319,2]
[322773546,1713276639723,-150.5,0.0003197,35]
[322773547,1713276639732,-150.5,0.0003198,35]
[322773548,1713276639741,-150.89,0.0003199,35]
[322773549,1713276639749,-150.5,0.0003199,35]
[322773550,1713276639758,-687.97932183,0.00031998,4]
[322773551,1713276639768,-8128.17000355,0.00031998,7]
[322773552,1713276639777,-155.19263828,0.00031998,2]
[322773553,1713276639786,-810.79597041,0.00031999,4]
[322773554,1713276639796,-191.14907978,0.00032,4]
[322773555,1713276639804,-39507.30619108,0.00032,2]
[322773556,1713276639814,-177.0,0.00032,5]
[322773557,1713276639823,-491.0,0.00032,2]
[322773558,1713276639832,-151.0,0.00032,2]
[322773559,1713276639841,-151.0,0.00032,2]
[322773560,1713276639850,-151.0,0.00032,2]
[322773561,1713276639859,-151.0,0.00032,2]
[322773562,1713276639867,-151.0,0.00032,2]
[322773563,1713276639882,-152.606467,0.00032,2]
[322773564,1713276639891,-178.904955,0.00032,2]
[322773565,1713276639899,-178.904955,0.00032,2]
[322773566,1713276639908,-178.904955,0.00032,2]
[322773567,1713276639918,-178.904955,0.00032,2]
[322773568,1713276639927,-178.904955,0.00032,2]
[322773569,1713276639937,-178.904955,0.00032,2]
[322773570,1713276639946,-156.615721,0.00032,2]
[322773571,1713276639955,-156.615721,0.00032,2]
[322773572,1713276639964,-156.615721,0.00032,2]
[322773573,1713276639974,-156.615721,0.00032,2]
[322773574,1713276639983,-156.615721,0.00032,2]
[322773575,1713276639992,-156.615721,0.00032,2]
[322773576,1713276640001,-151.0,0.00032,2]
[322773577,1713276640010,-151.0,0.00032,2]
[322773578,1713276640020,-151.0,0.00032,2]
[322773579,1713276640029,-151.0,0.00032,2]
[322773580,1713276640038,-151.0,0.00032,2]
[322773581,1713276640048,-234.823362,0.00032,2]
[322773582,1713276640057,-234.823362,0.00032,2]
[322773583,1713276640066,-151.0,0.00032,2]
[322773584,1713276640075,-151.0,0.00032,2]
[322773585,1713276640085,-151.0,0.00032,2]
[322773586,1713276640094,-286.87585,0.00032,2]
[322773587,1713276640104,-286.87585,0.00032,2]
[322773588,1713276640113,-963.745932,0.00032,2]
[322773589,1713276640125,-963.745932,0.00032,2]
[322773590,1713276640134,-151.0,0.00032,2]
[322773591,1713276640142,-501.1166,0.00032,2]
[322773592,1713276640151,-151.0,0.00032,2]
[322773593,1713276640159,-181.957623,0.00032,2]
[322773594,1713276640168,-181.957623,0.00032,2]
[322773595,1713276640178,-151.0,0.00032,2]
[322773596,1713276640187,-151.0,0.00032,2]
[322773597,1713276640197,-151.0,0.00032,2]
[322773598,1713276640206,-865.459624,0.00032,2]
[322773599,1713276640215,-865.459624,0.00032,2]
[322773600,1713276640224,-152.592117,0.00032,2]
[322773601,1713276640233,-564.728726,0.00032,2]
[322773602,1713276640242,-564.728726,0.00032,2]
[322773603,1713276640252,-173.64565,0.00032,2]
[322773604,1713276640261,-173.64565,0.00032,2]
[322773605,1713276640270,-1210.78934384,0.00032,3]
[322773606,1713276640279,-151.0,0.00032,2]
[322773607,1713276640288,-151.0,0.00032,2]
[322773608,1713276640297,-151.0,0.00032,2]
[322773609,1713276640306,-291.683163,0.00032,2]
[322773610,1713276640315,-652.8686618,0.00032055,30]
[322773611,1713276640325,-150.83408251,0.00032191,2]
[322773612,1713276640334,-250.21564279,0.00032191,2]
[322773613,1713276640343,-2501.269283,0.00032473,2]
[322773614,1713276640352,-2739.222337,0.00032473,2]
[322773615,1713276640362,-167.115171,0.00032473,2]
[322773616,1713276640374,-160.151817,0.00032473,2]
[322773617,1713276640384,-179.338172,0.00032473,2]
[322773618,1713276640393,-150.0,0.00032499,2]
[322773619,1713276640403,-200.0,0.000325,30]
[322773620,1713276640412,-417.0,0.00032503,2]
[322773621,1713276640423,-301.66816502,0.00032732,4]
[322773622,1713276640433,-1429.010337,0.00032877,2]
[322773623,1713276640442,-1429.010337,0.00032877,2]
[322773624,1713276640455,-1429.010337,0.00032877,2]
[322773625,1713276640465,-1429.010337,0.00032877,2]
[322773626,1713276640474,-171.470759,0.00032877,2]
[322773627,1713276640484,-178.904955,0.00032877,2]
[322773628,1713276640494,-178.904955,0.00032877,2]
[322773629,1713276640503,-156.615721,0.00032877,2]
[322773630,1713276640512,-156.615721,0.00032877,2]
[322773631,1713276640524,-151.0,0.00032877,2]
[322773632,1713276640535,-151.0,0.00032877,2]
[322773633,1713276640546,-151.0,0.00032877,2]
[322773635,1713276640557,-151.0,0.00032877,2]
[322773637,1713276640567,-151.0,0.00032877,2]
[322773639,1713276640577,-234.823362,0.00032877,2]
[322773641,1713276640586,-234.823362,0.00032877,2]
[322773643,1713276640595,-151.0,0.00032877,2]
[322773645,1713276640604,-171.725408,0.00032877,2]
[322773647,1713276640613,-151.0,0.00032877,2]
[322773649,1713276640624,-286.87585,0.00032877,2]
[322773651,1713276640634,-286.87585,0.00032877,2]
[322773653,1713276640642,-963.745932,0.00032877,2]
[322773654,1713276640651,-963.745932,0.00032877,2]
[322773657,1713276640661,-151.0,0.00032877,2]
[322773658,1713276640670,-1429.010337,0.00032877,2]
[322773660,1713276640679,-1429.010337,0.00032877,2]
[322773662,1713276640688,-151.0,0.00032877,2]
[322773664,1713276640698,-181.957623,0.00032877,2]
[322773666,1713276640706,-181.957623,0.00032877,2]
[322773668,1713276640715,-151.0,0.00032877,2]
[322773670,1713276640725,-151.0,0.00032877,2]
[322773672,1713276640738,-151.0,0.00032877,2]
[322773674,1713276640747,-865.459624,0.00032877,2]
[322773676,1713276640757,-865.459624,0.00032877,2]
[322773678,1713276640766,-564.728726,0.00032877,2]
[322773680,1713276640776,-564.728726,0.00032877,2]
[322773682,1713276640785,-173.64565,0.00032877,2]
[322773684,1713276640793,-173.64565,0.00032877,2]
[322773686,1713276640802,-151.0,0.00032877,2]
[322773688,1713276640811,-2739.222337,0.00032879,2]
[322773690,1713276640821,-2501.269283,0.00032879,2]
[322773692,1713276640830,-179.338172,0.00032879,2]
[322773694,1713276640839,-150.0,0.00032879,2]
[322773696,1713276640849,-151.0,0.00032879,2]
[322773698,1713276640859,-151.0,0.00032879,2]
[322773700,1713276640868,-2007.4842,0.00033,2]
[322773702,1713276640882,-390.482351,0.00033165,2]
[322773704,1713276640891,-261.797312,0.00033165,2]
[322773706,1713276640900,-165.732127,0.00033165,2]
[322773708,1713276640909,-391.47925652,0.00033227,2]
[322773711,1713276640919,-2539.07404344,0.0003323,2]
[322773713,1713276640928,-603.33633004,0.00033282,7]
[322773715,1713276640937,-178.904955,0.00033284,2]
[322773717,1713276640946,-178.904955,0.00033284,2]
[322773718,1713276640955,-156.615721,0.00033284,2]
[322773720,1713276640965,-156.615721,0.00033284,2]
[322773723,1713276640975,-2739.222337,0.00033285,2]
[322773725,1713276640984,-2501.269283,0.00033285,2]
[322773726,1713276640993,-179.338172,0.00033285,2]
[322773728,1713276641003,-501.1166,0.000333,2]
[322773731,1713276641013,-156.59766546,0.0003332,2]
[322773733,1713276641022,-7422.18,0.00033325,2]
[322773735,1713276641032,-7422.18,0.00033325,2]
[322773737,1713276641041,-7422.18,0.00033325,2]
[322773739,1713276641050,-7422.18,0.00033325,2]
[322773741,1713276641059,-7422.18,0.00033325,2]
[322773743,1713276641068,-7422.18,0.00033325,2]
[322773744,1713276641078,-7422.18,0.00033325,2]
[322773746,1713276641088,-7422.18,0.00033325,2]
[322773748,1713276641097,-7422.18,0.00033325,2]
[322773750,1713276641107,-7422.18,0.00033325,2]
[322773752,1713276641117,-564.728726,0.00033326,2]
[322773754,1713276641133,-564.728726,0.00033326,2]
[322773756,1713276641143,-564.728726,0.00033326,2]
[322773758,1713276641153,-564.728726,0.00033326,2]
[322773760,1713276641163,-173.64565,0.00033326,2]
[322773763,1713276641174,-173.64565,0.00033326,2]
[322773764,1713276641183,-173.64565,0.00033326,2]
[322773767,1713276641192,-173.64565,0.00033326,2]
[322773768,1713276641202,-151.0,0.00033326,2]
[322773770,1713276641211,-151.0,0.00033326,2]
[322773772,1713276641221,-155298.64056534,0.00033327,5]
[322773775,1713276641230,-151.0,0.00033327,2]
[322773776,1713276641239,-151.0,0.00033327,2]
[322773778,1713276641247,-151.0,0.00033327,2]
[322773780,1713276641257,-865.459624,0.00033327,2]
[322773782,1713276641266,-865.459624,0.00033327,2]
[322773784,1713276641275,-564.728726,0.00033327,2]
[322773786,1713276641284,-564.728726,0.00033327,2]
[322773788,1713276641297,-173.64565,0.00033327,2]
[322773790,1713276641307,-173.64565,0.00033327,2]
[322773792,1713276641316,-275.25762,0.00033327,2]
[322773794,1713276641326,-151.0,0.00033327,2]
[322773796,1713276641335,-151.0,0.00033327,2]
[322773798,1713276641344,-963.745932,0.00033328,2]
[322773800,1713276641354,-963.745932,0.00033328,2]
[322773802,1713276641363,-963.745932,0.00033328,2]
[322773804,1713276641377,-963.745932,0.00033328,2]
[322773806,1713276641386,-151.0,0.00033328,2]
[322773808,1713276641395,-1429.010337,0.00033328,2]
[322773820,1713276641505,-1429.010337,0.00033328,2]
[322773822,1713276641515,-1429.010337,0.00033328,2]
[322773825,1713276641526,-1429.010337,0.00033328,2]
[322773826,1713276641536,-151.0,0.00033328,2]
[322773829,1713276641546,-181.957623,0.00033328,2]
[322773830,1713276641555,-181.957623,0.00033328,2]
[322773832,1713276641564,-181.957623,0.00033328,2]
[322773834,1713276641573,-181.957623,0.00033328,2]
[322773836,1713276641583,-963.745932,0.00033329,2]
[322773838,1713276641592,-963.745932,0.00033329,2]
[322773840,1713276641601,-1429.010337,0.00033329,2]
[322773842,1713276641610,-1429.010337,0.00033329,2]
[322773844,1713276641621,-181.957623,0.00033329,2]
[322773846,1713276641631,-181.957623,0.00033329,2]
[322773848,1713276641641,-151.0,0.0003333,2]
[322773850,1713276641650,-151.0,0.0003333,2]
[322773852,1713276641659,-151.0,0.0003333,2]
[322773855,1713276641669,-151.0,0.0003333,2]
[322773857,1713276641678,-151.0,0.0003333,2]
[322773859,1713276641687,-151.0,0.0003333,2]
[322773861,1713276641696,-163.608993,0.0003333,2]
[322773863,1713276641705,-234.823362,0.0003333,2]
[322773864,1713276641715,-234.823362,0.0003333,2]
[322773865,1713276641724,-234.823362,0.0003333,2]
[322773866,1713276641732,-234.823362,0.0003333,2]
[322773867,1713276641741,-151.0,0.0003333,2]
[322773868,1713276641750,-151.0,0.0003333,2]
[322773869,1713276641759,-151.0,0.0003333,2]
[322773870,1713276641768,-247.018536,0.0003333,2]
[322773871,1713276641777,-286.87585,0.0003333,2]
[322773872,1713276641786,-286.87585,0.0003333,2]
[322773873,1713276641795,-286.87585,0.0003333,2]
[322773874,1713276641804,-286.87585,0.0003333,2]
[322773875,1713276641813,-151.0,0.0003333,2]
[322773876,1713276641822,-151.0,0.0003333,2]
[322773877,1713276641831,-196.630031,0.0003333,2]
[322773878,1713276641841,-865.459624,0.0003333,2]
[322773879,1713276641850,-865.459624,0.0003333,2]
[322773881,1713276641858,-865.459624,0.0003333,2]
[322773882,1713276641868,-865.459624,0.0003333,2]
[322773883,1713276641879,-151.0,0.0003333,2]
[322773884,1713276641888,-151.0,0.0003333,2]
[322773885,1713276641897,-151.0,0.00033331,2]
[322773886,1713276641906,-151.0,0.00033331,2]
[322773887,1713276641915,-151.0,0.00033331,2]
[322773888,1713276641924,-234.823362,0.00033331,2]
[322773890,1713276641934,-234.823362,0.00033331,2]
[322773892,1713276641943,-151.0,0.00033331,2]
[322773894,1713276641953,-286.87585,0.00033331,2]
[322773896,1713276641962,-286.87585,0.00033331,2]
[322773898,1713276641972,-500.0,0.00033332,2]
[322773900,1713276641981,-178.904955,0.00033332,2]
[322773902,1713276641991,-178.904955,0.00033332,2]
[322773904,1713276642000,-156.615721,0.00033332,2]
[322773906,1713276642009,-156.615721,0.00033332,2]
[322773908,1713276642019,-151.0,0.00033332,2]
[322773910,1713276642028,-250.273532,0.00033332,2]
[322773912,1713276642037,-178.904955,0.00033333,2]
[322773914,1713276642046,-178.904955,0.00033333,2]
[322773916,1713276642055,-156.615721,0.00033333,2]
[322773918,1713276642065,-156.615721,0.00033333,2]
[322773920,1713276642075,-151.0,0.00033333,2]
[322773922,1713276642084,-151.0,0.00033333,2]
[322773924,1713276642093,-234.823362,0.00033333,2]
[322773926,1713276642103,-234.823362,0.00033333,2]
[322773927,1713276642113,-151.0,0.00033333,2]
[322773930,1713276642126,-286.87585,0.00033333,2]
[322773931,1713276642135,-286.87585,0.00033333,2]
[322773933,1713276642146,-963.745932,0.00033333,2]
[322773935,1713276642155,-963.745932,0.00033333,2]
[322773938,1713276642165,-1429.010337,0.00033333,2]
[322773939,1713276642175,-1429.010337,0.00033333,2]
[322773941,1713276642184,-181.957623,0.00033333,2]
[322773943,1713276642195,-181.957623,0.00033333,2]
[322773945,1713276642204,-151.0,0.00033333,2]
[322773947,1713276642213,-865.459624,0.00033333,2]
[322773949,1713276642223,-865.459624,0.00033333,2]
[322773951,1713276642232,-564.728726,0.00033333,2]
[322773953,1713276642241,-564.728726,0.00033333,2]
[322773955,1713276642250,-173.64565,0.00033333,2]
[322773957,1713276642259,-173.64565,0.00033333,2]
[322773959,1713276642268,-151.0,0.00033333,2]
[322773961,1713276642278,-809837.43058716,0.00033333,7]
[322773963,1713276642287,-259.8252268,0.00033339,2]
[322773965,1713276642296,-2739.222337,0.0003369,2]
[322773967,1713276642305,-2501.269283,0.0003369,2]
[322773969,1713276642314,-179.338172,0.0003369,2]
[322773971,1713276642323,-166.81042853,0.00033841,4]
[322773973,1713276642332,-151.28033221,0.0003386,2]
[322773975,1713276642341,-157.927967,0.0003386,2]
[322773977,1713276642352,-884.053991,0.0003386,2]
[322773979,1713276642361,-631.711872,0.0003386,2]
[322773981,1713276642375,-167.01626,0.0003386,2]
[322773983,1713276642384,-237.525429,0.0003386,2]
[322773985,1713276642395,-310.248349,0.0003386,2]
[322773987,1713276642404,-28555.98721813,0.000339,2]
[322774120,1713276643492,-1646.78649352,0.000339,2]
[322774123,1713276643505,-1804.323423,0.000339,2]
[322774125,1713276643517,-646.17474422,0.000339,2]
[322774127,1713276643529,-370.28002814,0.0003392,3]
[322774129,1713276643538,-465.51859638,0.00034,4]
[322774131,1713276643548,-1530.49795813,0.00034,2]
[322774274,1713277435851,1520.0,0.00023,10]
[322774328,1713277832440,-766.94401523,0.00020692,5]
[322774329,1713277832449,-523.60793824,0.00020692,4]
[322774330,1713277832465,-199.11948761,0.00020693,2]
[322774682,1713277843617,-4.47826404,0.00020693,2]
[322774684,1713277843626,-468.90340767,0.00020693,2]
[322774686,1713277843635,-581.77700051,0.00020694,3]
[322774688,1713277843645,-8000.0,0.00020791,2]
[322774690,1713277843653,-7986.95594478,0.00020791,2]
[322779137,1713277896668,947.49867864,0.000189,2]
[322779139,1713278198277,631.66578576,0.000189,2]
[322779141,1713278501031,454.04338644,0.000189,2]
[322779147,1713278704477,688.53233417,0.00018455,2]
[322779148,1713278704509,666.67730323,0.00018455,2]
[322779151,1713278764072,180.412526,0.00018429,2]
[322779155,1713278802425,302.69559096,0.000189,2]
[322779156,1713278849907,250.0,0.00018692,2]
[322779212,1713279032677,-766.94401523,0.00019255,2]
[322779214,1713279032686,-188.93614172,0.00019256,2]
[322779215,1713279032695,-200.38532075,0.00019257,2]
[322779665,1713279043855,-389.40155476,0.00019257,2]
[322779667,1713279043865,-203.59775165,0.00019345,2]
[322779670,1713279043877,-606.99049357,0.00019354,2]
[322779672,1713279043889,-311.015,0.00019354,2]
[322779733,1713279044454,766.94401523,0.00017998,2]
[322779860,1713279047769,-30342.07493871,0.00019354,2]
[322779861,1713279047779,-7857.04488403,0.00019355,2]
[322779862,1713279047788,-300.0,0.00019355,2]
[322779863,1713279047798,-356.03349019,0.00019441,2]
[322779864,1713279047807,-188.93614172,0.00019998,2]
[322779865,1713279047817,-181.49261138,0.00019999,2]
[322779866,1713279047827,-80000.0,0.0002,2]
[322779867,1713279047836,-468.90340767,0.0002,2]
[322779868,1713279047845,-523.60793824,0.0002,4]
[322779869,1713279047854,-197.62022707,0.0002,2]
[322779870,1713279047863,-188.59204375,0.00020687,2]
[322779871,1713279047875,-390.38555253,0.00020687,2]
[322779872,1713279047883,-420.0,0.00021291,2]
[322779873,1713279047892,-587.0,0.0002342,2]
[322779874,1713279047901,-302.69559096,0.000239,2]
[322779875,1713279047910,-168.527542,0.00024143,2]
[322779876,1713279047919,-203.2640969,0.00025055,7]
[322779877,1713279047929,-836.37227565,0.0002556,2]
[322779878,1713279047938,-823.0,0.00025762,2]
[322779879,1713279047947,-630.81861378,0.00026838,2]
[322779880,1713279047957,-351.434115,0.00027397,2]
[322779881,1713279047967,-301.376941,0.00027397,2]
[322779882,1713279047977,-1000.0,0.00027397,2]
[322779883,1713279047987,-166.666666,0.00027397,2]
[322779884,1713279047996,-180.412526,0.00027643,2]
[322779885,1713279048005,-166.666666,0.00028038,2]
[322779886,1713279048015,-1152.0,0.00028338,2]
[322779887,1713279048025,-417.0,0.00028582,2]
[322779888,1713279048034,-166.666666,0.00028679,2]
[322779889,1713279048044,-4242.24078657,0.000289,10]
[322779890,1713279048053,-302.69559096,0.000289,2]
[322779891,1713279048062,-5000.0,0.00029,2]
[322779892,1713279048071,-166.666666,0.00029321,2]
[322779893,1713279048081,-166.666666,0.00029962,2]
[322779894,1713279048090,-1242.7975445,0.000306,4]
[322779895,1713279048098,-1242.7975445,0.000306,4]
[322779896,1713279048108,-166.666666,0.00030603,2]
[322779897,1713279048117,-5000.0,0.00031,4]
[322779899,1713279048128,-10629.16568609,0.00031,5]
[322779900,1713279048137,-1613.0,0.00031171,2]
[322779901,1713279048147,-417.0,0.00031582,2]
[322779903,1713279048156,-154.86062544,0.0003189,10]
[322779904,1713279048167,-538.58448892,0.00031899,4]
[322779906,1713279048178,-191.14907978,0.00032,4]
[322779908,1713279048187,-306.0,0.00032367,2]
[322779909,1713279048196,-153.0,0.00032428,2]
[322779912,1713279048206,-274.728102,0.00032473,2]
[322779913,1713279048217,-705.68691,0.00032473,2]
[322779915,1713279048226,-167.01626,0.00032473,2]
[322779917,1713279048235,-547.844468,0.00032473,2]
[322779918,1713279048244,-400.97950424,0.00032877,2]
[322779920,1713279048254,-274.728102,0.00032879,2]
[322779922,1713279048264,-705.68691,0.00032879,2]
[322779924,1713279048273,-547.844468,0.00032879,2]
[322779926,1713279048282,-153.0,0.00032976,2]
[322779928,1713279048290,-1000.0,0.00033,33]
[322779929,1713279048299,-390.0,0.00033,20]
[322779931,1713279048309,-169.0,0.00033,2]
[322779932,1713279048318,-351.434115,0.00033165,2]
[322779934,1713279048327,-301.376941,0.00033165,2]
[322779936,1713279048336,-203.2157658,0.00033178,2]
[322779938,1713279048345,-203.2157658,0.00033178,2]
[322779940,1713279048354,-203.2157658,0.00033178,2]
[322779941,1713279048364,-203.2157658,0.00033178,2]
[322779942,1713279048373,-203.2157658,0.00033178,2]
[322779943,1713279048384,-311.396256,0.00033178,2]
[322779944,1713279048393,-274.728102,0.00033285,2]
[322779945,1713279048402,-705.68691,0.00033285,2]
[322779946,1713279048411,-547.844468,0.00033285,2]
[322779947,1713279048421,-267.652484,0.00033476,2]
[322779948,1713279048430,-153.0,0.00033476,2]
[322779949,1713279048440,-153.0,0.00033476,2]
[322779950,1713279048450,-153.0,0.00033476,2]
[322779951,1713279048459,-153.0,0.00033476,2]
[322779952,1713279048468,-153.0,0.00033476,2]
[322779953,1713279048477,-153.0,0.00033476,2]
[322779954,1713279048486,-153.0,0.00033476,2]
[322779955,1713279048495,-153.0,0.00033476,2]
[322779956,1713279048504,-153.0,0.00033476,2]
[322779957,1713279048513,-153.0,0.00033476,2]
[322779958,1713279048523,-155.223453,0.00033476,2]
[322779959,1713279048532,-169.0,0.000335,2]
[322779960,1713279048541,-153.0,0.00033509,2]
[322779961,1713279048550,-153.0,0.00033509,2]
[322779962,1713279048559,-153.0,0.00033509,2]
[322779963,1713279048569,-274.728102,0.0003369,2]
[322779964,1713279048578,-705.68691,0.0003369,2]
[322779965,1713279048587,-547.844468,0.0003369,2]
[322779966,1713279048597,-2285.16663906,0.000339,2]
[322779967,1713279048607,-150.5,0.0003397,35]
[322779968,1713279048617,-1554.0,0.0003397,35]
[322779969,1713279048627,-273.66,0.0003397,35]
[322779970,1713279048636,-150.5,0.0003397,35]
[322779971,1713279048645,-546.0,0.0003397,35]
[322779972,1713279048655,-150.5,0.0003397,35]
[322779973,1713279048664,-150.5,0.0003398,35]